{"text_format":"1","workbook":"xlsx","n_sheets":2,"sheets":["Class of Estimate Instructions","Class 1 Checklist"],"not_rendered":{"charts":0,"images":7,"macros":1,"external_links":0,"defined_names":13,"comments":1,"pivot_tables":0},"unopened":[],"bounds":{"document_bytes":16777216,"sheet_cells":100000,"rows_first":2000,"rows_last":500,"rows_between":2000,"halvings":0,"cell_chars":16384,"cell_head_chars":4096},"cells_cut":0,"cells_raw":0,"read":"whole","date_system":"1900"}

{"sheet":"Class of Estimate Instructions","index":0,"n_rows":47,"n_cols":2,"rows_kept":47,"cut":false,"hidden":true,"merged":[]}
[null,"Class of Estimate Instructions"]
[]
[null,"Class of Estimate Tab"]
[null,"Reference:  The City has customized the Class of Estimate template based on AACE International Recommended Practice:\n \n       AACE 56R-08 Recommended Practice Cost Estimate Classification System – as applied in engineering, procurement, and construction for the Building and General Construction Industries   "]
[null,"Tabs:  For the Building Industry - Deliverable Maturity Assessment Checklist(s) and Class of Estimate template\n\n    - Class of Estimate Instructions  - \n    - CoE Summary - Class of Estimate Assessment Summary - This sheet helps the BoE author to rationalize the Class of Estimate by identifying key deliverables that define a specific Class of Estimate per AACE's recommended practices. Instructions for populating this tab, complete with examples, is available in the Class of Estimate Instructions tab.\n    - Class 5 - Deliverable Maturity Assessment Checklist - Class 5 \n    - Class 4 - Deliverable Maturity Assessment Checklist - Class 4\n    - Class 3 - Deliverable Maturity Assessment Checklist - Class 3\n    - Class 2 - Deliverable Maturity Assessment Checklist - Class 2\n    - Class 1 - Deliverable Maturity Assessment Checklist - Class 1\n    - Deliverable Definitions - Brief definition of both Project Data Deliverables and Technical Design Deliverables"]
[null,"Purpose:  As a project progresses through the various industry work streams from Investment Planning through to Construction, project definition, design deliverables and cost estimates will evolve and become more accurate, advancing Cost Estimates from a Class 5 to a Class 1.\n\nIn order to monitor this progression, the BldgIndustry tab is used to track project deliverables against project cost accuracy and percentage of project definition to align with the class of estimate rationale outlined in Table 1 – Classification of Estimate and Table 2 - Supporting Class of Estimate Rationale."]
[null,"General Instructions (This is a companion document to the Basis of Estimate (BoE) temple, used to determine the cost class estimate for the BoE.)\n\nThe Class of Estimate Author is responsible for generating the required class estimate by:\n \nStep 1.  Knowing where the investment/project is at in the Major Capital Project Project Delivery Processes.  Refer to Major Capital Project Delivery Processes (Design-Bid-Build) on CAMO's website: http://citynet/finance/infrastructure/camp/#10.  Identify which Stage Gate or Control Point the investment/project is going through.  Note the preceeding maturity class level.\n I.e.  If the investment/project is attempting to go through Control Point 2, note the preceeding cost estimate class is 3, as depicted below.\n\n\n"]
[]
[null,"Step 2.  Proceed to the Class of Estimate (CoE) Summary tab.\n\na. Enter the title of the Investment/Project.\nb. Enter a brief description of the Investment/Project.\nc. Enter the Business Case ID.\nd. Enter the date of the Deliverable Maturity Assessment for the Investment/project.\ne. Enter the name of the Class of Estimate Author (and additional Contributor names, as required).\n\n\n\n\n\n\n\n\n\n\nNote: The Title, Description, and Business Case ID should be the same as used in the Basis of Estimate template.\n\n\n"]
[null,"f. Scroll down midway in the CoE Summary tab till you reach the General Project Data Deliverable section.\ng. In Column A, go though the listing of general project data and technical design deliverables and select the checkbox to indicate that the deliverable is applicable to the investment/project.  This action will dynamically preset those specific deliverables in the subsequent Class 5, Class 4, Class 3, Class 2, Class 1 Deliverable Maturity Assessment Checklists tabs.\n"]
[null,"Now that you have selected the applicable deliverables for the investment/project, you can begin the Deliverable Maturity Assessment for each deliverable in the Investment/Project using the Class # Checklist determined in Step 1.\n"]
[null,"Step 4. Steps 1 (above) For the deliverables that do apply, identify the maturity level of the deliverables in the General Project Data and Design Deliverables sections in Table 2, by filling in the best suited maturity level of the deliverables’ current status in green. Determining the maturity level of deliverable requires the judgement of the BoE Author or an assigned Subject Matter Expert.\n\n3) When evaluating the class of estimate for a project, all cells must be shaded to reside within a specific class estimate column, it can be assessed that the overall BoE would be at that level of cost class estimate."]
[null,"      Exceptions or facts to consider:\n\n      I. Not all deliverables are created equal. The AACE tables do not place weightings on any specific deliverables.\n         BoE Authors may place more or less importance/weight on the critical deliverables for their\n         specific project.\n\n      ie. If the majority of deliverables in the Class 3 column are ‘Complete’ and shaded green, however the\n      deliverables “Standards Requirements” and “Standard Drawings” are at a ‘Preliminary’ maturity level, one may\n      decide to present the BoE as a Class 4 Cost Estimate, until those two deliverables move to a ‘Complete’ status.\n      In this case, the BoE Author would have placed a significant level of importance/weighting on these\n      deliverables, and would be able to defend that it was too great a risk to proceed without having these deliverables at a\n      ’Complete’ maturity level.\n\n     II. As a cost estimate matures and becomes more accurate, cells shall only be shaded up to and including the\n         level to which the BoE Author is presenting the required class estimate. (see Example #4 for the exception)\n\nNote: \nEven if the BoE Author believes that a deliverable is ’Complete’ and will remain unchanged as the estimate progresses from Class 3 to Class 1, no ‘Complete’ cells shall be shaded in the Class 2 or Class 1 columns until the project definition continues to progress and the estimate matures into a Class 2 or Class 1 level. This helps ensure that, although a particular deliverable may be completed, a verification of that deliverable is performed at every subsequent Class Estimate to confirm alignment with the project scope."]
[null,"4) Add relevant details in the comments column that support the rationale for selecting maturity level for deliverables and also to indicate why exceptions were made when applying the rule of thumb.\n\n5) If there is a specific document or drawing related to the deliverable, indicate the document/drawing number."]
[null,"Determine the Overall Class\n\nWhen each deliverable item has been analyzed and classified, the highlighted selections will help to visually determine the Class in which the Cost Classification is currently at. \n\nSelect the appropriate Class from the Overall cell's drop-down menu."]
[null,"Examples"]
[null,"Cost estimate maturity/progression from Class 4 to Class 3 using five design deliverables, as a representative sample for illustration purposes only."]
[null,"REDO SCREEN SHOTS - I Think these are not the current examples at play"]
[null,"Ex: 1 – A CoE Author would be determining  this as a Class 4 estimate."]
[]
[]
[]
[]
[]
[]
[]
[null,"Ex: 2 – If a CoE Author had placed significant importance on having the Standards Drawings completed and approved, the CoE should present this as a Class 4 estimate.  Significant risks and project costs may also be associated with this deliverable. If a progress report was needed at this point in time, it would be recommended to present this a Class 4 estimate."]
[]
[]
[]
[]
[]
[]
[]
[]
[]
[null,"Ex: 3 – A CoE Author has determined this as a Class 3 estimate as the majority of the deliverables are at the appropriate level of completion and not having a `Completed` Site Plan at this point in the project, would not pose a significant risk to the project’s outcome provided the site plan was not of significant importance."]
[]
[]
[]
[]
[]
[]
[]
[]
[]
[null,"Ex: 4 – If a BoE Author has determined a Class 3 estimate, where the design deliverables for the Demolition Plan  are `Complete`, only shade green the first occurrence of that status. Again, this is to ensure that the deliverables are continuously verified and are aligned with project scope as the project continues to progress."]

{"sheet":"Class 1 Checklist","index":1,"n_rows":77,"n_cols":6,"rows_kept":77,"cut":false,"hidden":false,"merged":[[44,2,44,4],[1,2,1,3],[2,2,2,3],[3,2,3,3],[4,2,4,3],[5,2,5,3],[8,2,8,4],[26,2,26,3]]}
[true,null,null,null," "]
[true,null,"Title:",null,{"$f":"Title","v":{"$error":"#REF!"}},"Class 1"]
[true,null,"Description:",null,{"$f":"Description","v":{"$error":"#REF!"}}]
[true,null,"Business Case ID:",null,{"$f":"BC_ID","v":{"$error":"#REF!"}}]
[true,null," Date:"]
[true,null,"Class of Estimate Author: \n(and other Contributors, as required)"]
[true," "]
[true," ","Maturity Level of Project Definition Required    ===>>\n\n\n\n "," ","Key Deliverable and Target Status \n CLASS 1 - All deliverables in the maturity matrix complete.\n\n              99% Project Definition Complete\n              99% Design Complete\n ","          Legend:\n* City of Winnipeg customization: change in either the deliverable \n         name or maturity level.\n** City of Winnipeg customization: net new deliverable, not in the \n        AACE Recommended Practice that this checklist is based on.    "]
[true," ","GENERAL PROJECT DATA DELIVERABLES:"]
[true,"#","Deliverable","Maturity Level"," Assessment description, characteristics:","Comments:"]
[true,null,"A. SCOPE:",null," "," "]
[{"$f":"#REF!","v":{"$error":"#REF!"}},1,"Non-Process Facilities (Infrastructure, Ports, Pipeline, Power Transmission, etc.)\n","Defined","• Revised non-process facility requirements, based on project changes and detailed design progression, as required.\n• Final Non-Process Facility requirements complete."]
[{"$f":"#REF!","v":{"$error":"#REF!"}},2,"Project Scope of Work Description\n","Defined","• Revised project scope of work requirements based on project changes, and detailed design progression, as required.\n• Final Project Scope of Work complete.\n"]
[{"$f":"#REF!","v":{"$error":"#REF!"}},3,"By-product and Waste Disposal\n","Defined","• Revised list of by-products and wastes, including quantities and management process(s), based on project changes.\n• Final list of by-products and wastes, including quantities and management process(s) complete.\n"]
[{"$f":"#REF!","v":{"$error":"#REF!"}},4,"Temporary Site Infrastructure (Access, Construction Power, Camp, etc.) *\n","Defined","• Revised temporary site Infrastructure, based on construction phasing, as required. \n• Final Temporary Site Infrastructure complete.\n"]
[{"$f":"#REF!","v":{"$error":"#REF!"}},null,"B.CAPACITY:",null," "," "]
[{"$f":"#REF!","v":{"$error":"#REF!"}},5,"Plant Production/Facility (includes power facilities)\n","Defined","{Intentionally left blank}"]
[{"$f":"#REF!","v":{"$error":"#REF!"}},6,"Electrical Power Requirements (when not the primary capacity driver)\n","Defined","• Revised electrical power requirements, based on project changes and detailed design progression, as required. \n• Final Electrical Power Requirements complete.\n"]
[{"$f":"#REF!","v":{"$error":"#REF!"}},null,"C.PROJECT LOCATION:",null," "," "]
[{"$f":"#REF!","v":{"$error":"#REF!"}},7,"Plant and Associated Facilities\n","Defined","• Revised plant location requirements, based on project changes and detailed design progression, as required.\n• Plant Location Requirements complete. \n"]
[{"$f":"#REF!","v":{"$error":"#REF!"}},null,"D.REQUIREMENTS:",null," "," "]
[{"$f":"#REF!","v":{"$error":"#REF!"}},8,"Enhanced Disaster/Emergency Protection **\n","Defined","• Revised enhanced disaster/emergency protection requirements, based on project changes and detailed design progression, as required.\n• Final Enhanced Disaster/Emergency Protection requirements complete.\n"]
[{"$f":"#REF!","v":{"$error":"#REF!"}},9,"Codes and/or Standards\n","Defined","• Incorporation of the applicable codes, guidelines and standards requirements, based on project changes and detailed design progression, as required. \n• All applicable codes, guidelines and standards incorporated in final design.\n"]
[{"$f":"#REF!","v":{"$error":"#REF!"}},10,"Communication Systems \n","Defined","• Revised communication systems requirements, based on project changes and detailed design progression, as required.\n• Final Communication Systems requirements complete.\n"]
[{"$f":"#REF!","v":{"$error":"#REF!"}},11,"Fire Protection and Life Safety Requirements\n","Defined","• Revised fire protection and life safety requirements, based on project changes and detailed design progression, as required.\n• Location of Fire Protection and Life Safety equipment complete.\n• Performance specifications complete.\n• Final Fire Protection and Life Safety requirements complete.\n"]
[{"$f":"#REF!","v":{"$error":"#REF!"}},12,"Environmental Monitoring\n","Defined","• Environmental Monitoring Plan and Systems requirements complete.\n"]
[{"$f":"#REF!","v":{"$error":"#REF!"}},null,"E.TECHNOLOGY SELECTION:",null," "," "]
[{"$f":"#REF!","v":{"$error":"#REF!"}},13,"Process Technology\n","Defined","• Revised Process Technology requirements based on project changes and detailed design progression, as required.\n• Final Process Technology requirements established.\n"]
[{"$f":"#REF!","v":{"$error":"#REF!"}},null,"F.STRATEGY:",null," "," "]
[{"$f":"#REF!","v":{"$error":"#REF!"}},14,"Contracting/Sourcing\n","Defined","• Major Contract documents complete.\n"]
[{"$f":"#REF!","v":{"$error":"#REF!"}},15,"Land Assembly Strategy*\n","Defined","• Revised Land Assembly Strategy, based on project changes and detailed design progression, as required. \n• Horizontal and vertical alignments finalized. \n• Final Land Assembly Strategy complete. \n"]
[{"$f":"#REF!","v":{"$error":"#REF!"}},null,"G.PLANNING:",null," "," "]
[{"$f":"#REF!","v":{"$error":"#REF!"}},16,"Logistics Plan\n","Defined","• Revised logistical guidelines for the design based on project changes and detailed design progression.\n• Revised operational requirements, site layout, Traffic Management Plan, site security and access requirements, Material and Equipment Delivery requirements, requirements for site infrastructure and health and safety management requirements based on project changes and detailed design progression.\n• Final Logistics Plan complete.\n"]
[{"$f":"#REF!","v":{"$error":"#REF!"}},17,"Project Delivery Plan*\n","Defined","• Revised Project Delivery Plan, based on project changes and detailed design progression, as required.\n• Final Project Delivery Plan complete.\n"]
[{"$f":"#REF!","v":{"$error":"#REF!"}},18,"Project Master Schedule\n","Defined","• All work packages and deliverables finalized.\n• All sub-schedules finalized.\n• Critical paths finalized.\n• Resources and time commitment for each activity identified.\n"]
[{"$f":"#REF!","v":{"$error":"#REF!"}},19,"Regulatory Approval and Permitting\n","Defined","• Regulatory applications and approvals complete or underway.\n"]
[{"$f":"#REF!","v":{"$error":"#REF!"}},20,"Risk Register\n","Defined","• Risk register reviewed and revised based on project changes and detailed design progression, as required. \n"]
[{"$f":"#REF!","v":{"$error":"#REF!"}},21,"Stakeholder Consultation/Engagement/Management Plan\n","Defined","• Public Engagement Report finalized, as required, if required.\n• Public communication processes complete and all Stakeholders received notification of the final project design/decisions.\n"]
[{"$f":"#REF!","v":{"$error":"#REF!"}},22,"Work Breakdown Structure\n","Defined","• All deliverables finalized, which includes all work packages, activities, timelines, resource assignments and associated costs.\n"]
[{"$f":"#REF!","v":{"$error":"#REF!"}},23,"Startup and Commissioning Plan\n","Defined","• Revised startup and commissioning plan based on project progression, as required.\n• Final Startup and Commissioning Plan complete.\n"]
[{"$f":"#REF!","v":{"$error":"#REF!"}},null,"H.STUDIES:",null," "," "]
[{"$f":"#REF!","v":{"$error":"#REF!"}},24,"Environmental Impact/Sustainability Assessment\n","Defined","• Environment Act License application and approvals received.  \n• Sustainability targets refined, as required."]
[{"$f":"#REF!","v":{"$error":"#REF!"}},25,"Environmental and Existing Conditions*\n","Defined","• Revised Environmental and Existing Conditions based on project changes and as additional potential items of concern are found, as required.\n• Final Environmental and Existing Conditions complete.\n"]
[{"$f":"#REF!","v":{"$error":"#REF!"}},26,"Geotechnical Reports* \n","Defined","• Revised geotechnical reports, as required.\n• Revised geotechnical and/or hydrology recommendations, as required.\n• Final Geotechnical reports issued and recommendations complete.\n• Final Hydrology report issued and recommendations complete.\n• Professionally sealed documents.\n"]
[{"$f":"#REF!","v":{"$error":"#REF!"}}," ","TECHNICAL DESIGN DELIVERABLES:",null,null," "]
[{"$f":"#REF!","v":{"$error":"#REF!"}},"#","Deliverable","Maturity Level","Assessment description, characteristics:","Comments:"]
[{"$f":"#REF!","v":{"$error":"#REF!"}},27,"Block Flow Diagrams\n","Complete","{Intentionally left blank}"]
[{"$f":"#REF!","v":{"$error":"#REF!"}},28,"Equipment Datasheets\n","Complete","• Refined Equipment Datasheets based on project changes and detailed design progression, as required.\n• Final Equipment Datasheets complete.\n• Professionally sealed documents.\n"]
[{"$f":"#REF!","v":{"$error":"#REF!"}},29,"Equipment List: Electrical\n","Complete","• Cable Schedule complete.\n• MCC Schedules complete.\n• Panel Schedules complete.\n• Luminaire Schedule complete.\n• Equipment Schedules or Lists for other electrical equipment complete.\n"]
[{"$f":"#REF!","v":{"$error":"#REF!"}},30,"Equipment List: Process/Utility/Mechanical\n","Complete","• Refined equipment list based on projects changes and detailed design progression, as required.\n• Refined equipment types, sizes, capacity, quantities and equipment layout based on projects changes and detailed design progression, as required.\n• Final types, quantities, sizes and locations complete.\n• Final Equipment List – Process, Utility, Mechanical complete.\n• Equipment specifications complete.\n• Professionally sealed documents, as required.\n"]
[{"$f":"#REF!","v":{"$error":"#REF!"}},31,"Heat and Mass Balances*\n","Complete","• Refined heat and mass balance calculations based on project changes and detailed design progression, as required.\n"]
[{"$f":"#REF!","v":{"$error":"#REF!"}},32,"Process Flow Diagrams (PFDs)\n","Complete","• Refined PFDs based on project changes and detailed design progression, as required.\n• Final PFDs complete.\n• Professionally sealed documents. \n"]
[{"$f":"#REF!","v":{"$error":"#REF!"}},33,"Utility Flow Diagrams (UFDs)\n","Complete","• Refined UFDs, based on project changes and detailed design progression, as required.\n• Final UFDs complete.\n• Professionally sealed documents. \n"]
[{"$f":"#REF!","v":{"$error":"#REF!"}},34,"Piping & Instrument Diagrams (P&IDs)\n","Complete","• Refined P&IDs based on project changes and detailed design progression, as required.\n• Final P&IDs complete.\n• Professionally sealed documents.\n"]
[{"$f":"#REF!","v":{"$error":"#REF!"}},35,"Site Plans*\n","Complete","• Refined site plan(s), based on project changes and detailed design progression, as required.\n• Final scaled and labelled site plan(s) complete.  \n• Drawings may be dimensioned.\n• Professionally sealed documents. \n"]
[{"$f":"#REF!","v":{"$error":"#REF!"}},36,"Design Specifications\n\n\n","Complete","• Refined and cross-discipline coordinated design specifications based on project changes and detailed design progression, as required.\n• Refined all City tender documents based on project changes and detailed design progression, as required.\n• Final Design Specifications complete.\n• Professionally sealed documents.\n"]
[{"$f":"#REF!","v":{"$error":"#REF!"}},37,"Electrical Single Line Drawings*\n","Complete","• Refined Electrical Single Line Drawings based on project changes and detailed design progression, as required.\n• Drawings include:\n   • switchgear, MCC, panel boards, transformers, with sizing indicated;\n   • all electrical 3-phase and single-phase loads; including: equipment id's, description, motor sizing;\n   • interlocks: mechanical, Kirk key and electrical finalized;\n   • service and transformer grounding indicated;\n   • cable ID and size/type;\n   • electrical equipment interface connections to Programmable Logic Controller (PLC) or other equipment in Process Controls System (PCS);\n   • groupings of various loads are indicated based on sizing of MCC, Central Distribution Panel CDP and branch panels refined;\n   • arc flash ratings indicated.\n• Emergency/Backup power systems complete.\n• Final Electrical Single Line Drawings complete.\n• Professionally sealed documents. \n"]
[{"$f":"#REF!","v":{"$error":"#REF!"}},38,"General Equipment Arrangement Drawings\n","Complete","• Refined general equipment arrangement drawings, based on project changes and detailed design progression, as required.\n• Final General Equipment Arrangement Drawings complete.\n• Professionally sealed documents. \n"]
[{"$f":"#REF!","v":{"$error":"#REF!"}},39,"Construction Permits\n","Complete","• Refined construction permit schedule based on project changes and detail design progression, as required.\n• Permit application drawings and documents underway or complete, as applicable.\n"]
[{"$f":"#REF!","v":{"$error":"#REF!"}},40,"Civil / Site / Structural / Architectural Discipline Drawings ","Complete","• Refined Civil, Site, Structural, Architectural Discipline Drawings, based on project changes and detailed design progression, as required. \n• Plan/Profile drawings complete.\n• Drawing set reviewed and signed off by Underground Structures, as applicable.\n• Final Civil, Site, Structural, Architectural Discipline Drawings complete and cross-discipline coordinated. \n• Professionally sealed documents.\n"]
[{"$f":"#REF!","v":{"$error":"#REF!"}},41,"Demolition Plan and Drawings\n","Complete","• Refined demolition plan and drawings based on project changes and detailed design progression, as required.\n• Refined plan to maintain utilities during demolition.\n• Demolition staging finalized.\n• Final Demolition Plan, Drawings and specifications complete and cross discipline coordinated.\n• Professionally sealed documents.\n"]
[{"$f":"#REF!","v":{"$error":"#REF!"}},42,"Erosion Control Plan and Drawings\n","Complete","• Refined erosion control plans and drawings, based on project changes and detailed design progression, as required.\n• Final Erosion Control Plans and Drawings complete.\n• Professionally sealed documents.\n"]
[{"$f":"#REF!","v":{"$error":"#REF!"}},43,"Fire Protection and Life Safety Drawings and Details\n","Complete","• Refined Fire Protection Drawings and details, based on project changes and detailed design progression, as required.\n• Refined Life Safety Drawings and details, based on project changes and detailed design progression, as required.\n• Final Fire Protection Drawings and details complete and cross-discipline coordinated.\n• Final Life Safety Drawings and details complete and cross-discipline coordinated.\n• Professionally sealed documents. \n\n"]
[{"$f":"#REF!","v":{"$error":"#REF!"}},44,"Instrumentation and Control Schedules*\n","Complete","• Refined Instrumentation Control Schedules, based on project changes and detailed design progression, as required. \n• Final Instrumentation and Control Schedules complete.\n• Professionally sealed documents.\n"]
[{"$f":"#REF!","v":{"$error":"#REF!"}},45,"Instrumentation Datasheets*\n","Complete","• Refined Instrumentation Datasheets based on project changes and detailed design progression, as required.\n• Final Instrumentation Datasheets complete.\n• Professionally sealed documents.\n"]
[{"$f":"#REF!","v":{"$error":"#REF!"}},46,"Instrumentation and Control System Discipline Drawings*\n","Complete","• Refined deliverables (below) based on project changes and detailed design progression, as required.\n     • Loop Drawings \n     • Instrument Segment Drawings\n     • Instrument Location Plan Drawings\n     • Instrument Installation Details Drawings\n     • Control Panel Layouts and Bills of Material\n     • Control Panel Power Distribution Schematic\n     • I/O Module Wiring Diagram \n     • Network Diagrams\n     • Automation Conduit Riser Diagram (if required)\n• Final Loop Drawings complete. \n• Final Instrument Segment Drawings complete.\n• Final Instrument Location Plan Drawings complete. \n• Final Instrument Installation Details Drawings complete. \n• Final Control Panel Layouts and Bills of Material complete.\n• Final Control Panel Power Distribution Schematic complete. \n• Final I/O Module Wiring Diagram complete. \n• Final Network Diagrams complete.\n• Final Automation Conduit Riser Diagram complete, if required.\n• Professionally sealed documents."]
[{"$f":"#REF!","v":{"$error":"#REF!"}},47,"Instrumentation Equipment List*\n\n","Complete","• Refined instrumentation equipment list, based on project changes and detailed design progression, as required. \n• Final Instrumentation Equipment List complete.\n• Professionally sealed documents.\n"]
[{"$f":"#REF!","v":{"$error":"#REF!"}},48,"Instrumentation Input/output List**\n","Complete","• Refined Instrumentation Input/output List based on project changes and detailed design progression, as required.\n• Final Instrumentation Input/output List complete.\n• Professionally sealed documents.\n"]
[{"$f":"#REF!","v":{"$error":"#REF!"}},49,"Piping Schedules\n","Complete","• Piping systems tables/schedules complete.\n"]
[{"$f":"#REF!","v":{"$error":"#REF!"}},50,"Piping Discipline Drawings\n","Complete","• Refined pipe route plans, section and elevation drawings based on project changes and detailed design progression, as required.\n• Refined Piping Detail Drawings, based on project changes and detail design progression, as required.\n• Final Piping Discipline Drawings complete and cross-discipline coordinated.\n• Professionally sealed documents.\n"]
[{"$f":"#REF!","v":{"$error":"#REF!"}},51,"Spare Parts, Special Tools and Maintenance Material Listings*\n","Complete","• Refined Spare Parts, Special Tools and Maintenance Materials Listings, based on project changes and detail design progression, as required.\n• Final Spare Parts, Special Tools and Maintenance Materials Listings complete.\n• Final quantities of required spare parts/extra materials confirmed.\n• Final specifications complete with quantities of spare parts/extra materials.\n• Final location(s) of spare parts storage identified, as required.   \n"]
[{"$f":"#REF!","v":{"$error":"#REF!"}},52,"Electrical Discipline Drawings\n\n","Complete","• Refined Site Plan. \n• Final Site Plan complete. \n• Refined Equipment Plan Layout drawings.\n• Final Equipment Plan Layout drawings complete.\n• Final Cable Schedule complete.\n• Refined Motor Control Centre (MCC) Layout drawings. \n• Final Motor Control Centre (MCC) Layout drawings complete.\n• Final MCC Schedule complete.\n• Refined Motor Connection Diagram. \n• Final Motor Connection Diagram complete.\n• Refined Motor Starter Schematics. \n• Final Motor Starter Schematics complete.\n• Final Panel Schedules complete.\n• Refined Switchgear Three-Line Diagram.\n• Final Switchgear Three-Line Diagram complete.\n• Refined Grounding Drawing. \n• Final Grounding Drawing complete.\n• Refined Electrical Room Layout drawings. \n• Final Electrical Room Layout complete.\n• Refined Lighting Plan drawings. \n• Final Lighting Plan drawings complete.\n• Refined Cable Tray Layouts drawings. \n• Final Cable Tray Layout drawings complete.\n• Refined Hazardous Location Plan drawing. \n• Final Hazardous Location Plan Drawing complete. (if required)\n• Refined Lightning Protection drawings. \n• Final Lightning Protection drawings complete.\n• Refined Power Distribution Switching Diagram. \n• Final Power Distribution Switching Diagram complete.  \n• Professionally sealed documents.   \n"]
[{"$f":"#REF!","v":{"$error":"#REF!"}},53,"Electrical Schedules\n","Complete","• Electrical schedules and panel locations complete.\n• Professionally sealed documents.\n"]
[{"$f":"#REF!","v":{"$error":"#REF!"}},54,"Mechanical Discipline Drawings\n","Complete","• Refined HVAC and Utility Floor Plans, and Plumbing Floor Plans, based on project changes and detailed design progression, as required.\n• Detail drawings complete.\n• HVAC, utility, and plumbing drawings complete.\n• Professionally sealed documents.\n"]
[{"$f":"#REF!","v":{"$error":"#REF!"}},55,"Information Systems / Telecommunication Drawings\n\n","Complete","• Refined Information Systems/Telecommunication Drawings based on project changes and detailed design progression, as required.\n• Final Information Systems/Telecommunication Drawings complete.\n• Professionally sealed documents.\n"]
[{"$f":"#REF!","v":{"$error":"#REF!"}},56,"Land Acquisition**\n\n","Complete","• All necessary property acquired and/or Enter To Construct Agreements obtained.\n• Geomatics Division to register any necessary legal plans at Land Titles Office.\n"]
[" "]